[Event "*** SCC Grand Prix: Titled Tuesday Blitz"]
[Site "Chess.com"]
[Date "2020.06.23"]
[Round "6"]
[White "ChessicallyInclined"]
[Black "EvgenyRomanov"]
[Result "1-0"]
[WhiteElo "2490"]
[BlackElo "2629"]
[TimeControl "180+1"]
[EndTime "11:05:19 PDT"]
[Termination "ChessicallyInclined won by checkmate"]

1. d4 {[%clk 0:03:00.9]} 1... Nf6 {[%clk 0:02:58.1]} 2. c4 {[%clk 0:03:01.4]}
2... c5 {[%clk 0:02:57.3]} 3. d5 {[%clk 0:03:01.2]} 3... b5 {[%clk 0:02:57.3]}
4. cxb5 {[%clk 0:03:02.1]} 4... a6 {[%clk 0:02:56.7]} 5. f3 {[%clk 0:03:02.7]}
5... d6 {[%clk 0:02:53.6]} 6. e4 {[%clk 0:02:59.6]} 6... g6 {[%clk 0:02:51.7]}
7. Na3 {[%clk 0:02:56.9]} 7... Bg7 {[%clk 0:02:50.3]} 8. Ne2 {[%clk 0:02:57.1]}
8... axb5 {[%clk 0:02:46.1]} 9. Nxb5 {[%clk 0:02:56.8]} 9... O-O {[%clk
0:02:42]} 10. Nec3 {[%clk 0:02:56]} 10... Nbd7 {[%clk 0:02:31.9]} 11. Be3 {[%clk
0:02:53.6]} 11... Ne5 {[%clk 0:02:30.7]} 12. Be2 {[%clk 0:02:52.7]} 12... Ne8
{[%clk 0:02:15.7]} 13. O-O {[%clk 0:02:51.2]} 13... f5 {[%clk 0:01:58.2]} 14. f4
{[%clk 0:02:41.4]} 14... Ng4 {[%clk 0:01:57.9]} 15. Bxg4 {[%clk 0:02:41.1]}
15... fxg4 {[%clk 0:01:58.1]} 16. Qe2 {[%clk 0:02:28.8]} 16... Nc7 {[%clk
0:01:49]} 17. a4 {[%clk 0:02:23.4]} 17... h5 {[%clk 0:01:48.1]} 18. Rad1 {[%clk
0:02:18.9]} 18... Nxb5 {[%clk 0:01:45]} 19. axb5 {[%clk 0:02:18.4]} 19... Qe8
{[%clk 0:01:40.3]} 20. Bc1 {[%clk 0:02:15.7]} 20... Bd4+ {[%clk 0:01:37.5]} 21.
Be3 {[%clk 0:02:09.6]} 21... Bg7 {[%clk 0:01:37]} 22. e5 {[%clk 0:02:05.1]}
22... dxe5 {[%clk 0:01:27.5]} 23. fxe5 {[%clk 0:02:02.4]} 23... Rxf1+ {[%clk
0:01:23.9]} 24. Rxf1 {[%clk 0:02:02.8]} 24... Bxe5 {[%clk 0:00:39.4]} 25. Bxc5
{[%clk 0:02:01.3]} 25... Bg7 {[%clk 0:00:39]} 26. Bxe7 {[%clk 0:01:52.3]} 26...
Bd7 {[%clk 0:00:23]} 27. d6 {[%clk 0:01:47.9]} 27... Rb8 {[%clk 0:00:15.2]} 28.
Qc4+ {[%clk 0:01:42.8]} 28... Kh7 {[%clk 0:00:14]} 29. Rf7 {[%clk 0:01:18.3]}
29... Rc8 {[%clk 0:00:13.8]} 30. Qf4 {[%clk 0:01:07.3]} 30... Bf5 {[%clk
0:00:13.5]} 31. Rxf5 {[%clk 0:00:55.1]} 31... gxf5 {[%clk 0:00:13.6]} 32. Qxf5+
{[%clk 0:00:56]} 32... Kh6 {[%clk 0:00:10.8]} 33. Bg5# {[%clk 0:00:55.6]} 1-0

[Event "*** SCC Grand Prix: Titled Tuesday Blitz"]
[Site "Chess.com"]
[Date "2020.06.23"]
[Round "6"]
[White "zaur-mammadov"]
[Black "manmanlai1"]
[Result "1-0"]
[WhiteElo "2606"]
[BlackElo "2426"]
[TimeControl "180+1"]
[EndTime "11:05:22 PDT"]
[Termination "zaur-mammadov won by resignation"]

1. e4 {[%clk 0:03:00.9]} 1... c5 {[%clk 0:02:58.5]} 2. c3 {[%clk 0:03:00.7]}
2... e6 {[%clk 0:02:58.9]} 3. d4 {[%clk 0:03:00.3]} 3... d5 {[%clk 0:02:49.9]}
4. e5 {[%clk 0:03:00.3]} 4... Bd7 {[%clk 0:02:48.6]} 5. Nf3 {[%clk 0:03:00.4]}
5... Qb6 {[%clk 0:02:48.8]} 6. Na3 {[%clk 0:03:00.6]} 6... Na6 {[%clk
0:02:44.9]} 7. Nc2 {[%clk 0:02:59.9]} 7... Bb5 {[%clk 0:02:41.7]} 8. Bd3 {[%clk
0:02:55.2]} 8... Rc8 {[%clk 0:02:35.7]} 9. O-O {[%clk 0:02:54]} 9... Ne7 {[%clk
0:02:33.1]} 10. dxc5 {[%clk 0:02:34.6]} 10... Nxc5 {[%clk 0:02:34]} 11. Bxb5+
{[%clk 0:02:33.9]} 11... Qxb5 {[%clk 0:02:34.9]} 12. Ncd4 {[%clk 0:02:33.4]}
12... Qa6 {[%clk 0:02:34.3]} 13. h4 {[%clk 0:02:26.3]} 13... Nc6 {[%clk
0:02:30.5]} 14. h5 {[%clk 0:02:24]} 14... h6 {[%clk 0:02:26.8]} 15. Nxc6 {[%clk
0:02:24]} 15... Rxc6 {[%clk 0:02:20.9]} 16. Nd4 {[%clk 0:02:24.3]} 16... Rc8
{[%clk 0:02:20.3]} 17. Qg4 {[%clk 0:02:24.9]} 17... Qd3 {[%clk 0:02:07.5]} 18.
f4 {[%clk 0:02:21.3]} 18... Ne4 {[%clk 0:02:00.1]} 19. f5 {[%clk 0:02:14.3]}
19... Bc5 {[%clk 0:01:50.6]} 20. Qxg7 {[%clk 0:02:02.6]} 20... Bxd4+ {[%clk
0:00:36.5]} 21. cxd4 {[%clk 0:02:03.5]} 21... Qxd4+ {[%clk 0:00:36]} 22. Kh1
{[%clk 0:02:01.7]} 22... Kd7 {[%clk 0:00:17.2]} 23. fxe6+ {[%clk 0:01:52.5]}
23... Kc6 {[%clk 0:00:15.9]} 24. exf7 {[%clk 0:01:31.2]} 24... Kb6 {[%clk
0:00:16]} 25. Bxh6 {[%clk 0:01:14]} 25... Ka5 {[%clk 0:00:09.3]} 26. b4+ {[%clk
0:01:04.8]} 26... Ka4 {[%clk 0:00:09.6]} 27. e6 {[%clk 0:00:55.8]} 27... Rxh6
{[%clk 0:00:09.6]} 28. Qxd4 {[%clk 0:00:50.7]} 28... Ng3+ {[%clk 0:00:09.3]} 29.
Kh2 {[%clk 0:00:48.4]} 1-0

[Event "*** SCC Grand Prix: Titled Tuesday Blitz"]
[Site "Chess.com"]
[Date "2020.06.23"]
[Round "6"]
[White "timator"]
[Black "Sueetin"]
[Result "1-0"]
[WhiteElo "2548"]
[BlackElo "2349"]
[TimeControl "180+1"]
[EndTime "11:05:33 PDT"]
[Termination "timator won on time"]

1. Nf3 {[%clk 0:03:00.9]} 1... d5 {[%clk 0:02:59.7]} 2. d4 {[%clk 0:02:58.4]}
2... Nf6 {[%clk 0:02:59.4]} 3. c4 {[%clk 0:02:59.3]} 3... e6 {[%clk 0:02:59.6]}
4. Nc3 {[%clk 0:02:59.6]} 4... Bb4 {[%clk 0:02:57.2]} 5. Bg5 {[%clk 0:02:59.1]}
5... h6 {[%clk 0:02:47]} 6. Bxf6 {[%clk 0:02:58.4]} 6... Qxf6 {[%clk 0:02:47.4]}
7. Qa4+ {[%clk 0:02:59]} 7... Nc6 {[%clk 0:02:47.2]} 8. e3 {[%clk 0:02:59.6]}
8... O-O {[%clk 0:02:45.2]} 9. Be2 {[%clk 0:02:46.7]} 9... dxc4 {[%clk
0:02:34.9]} 10. Bxc4 {[%clk 0:02:44.5]} 10... a6 {[%clk 0:02:28.6]} 11. Qc2
{[%clk 0:02:42.7]} 11... e5 {[%clk 0:02:17.7]} 12. d5 {[%clk 0:02:36.2]} 12...
Ne7 {[%clk 0:02:13.9]} 13. O-O {[%clk 0:02:32.9]} 13... Bg4 {[%clk 0:02:07]} 14.
Nd2 {[%clk 0:02:31.3]} 14... Bd6 {[%clk 0:01:54.3]} 15. Nce4 {[%clk 0:02:20.8]}
15... Qh4 {[%clk 0:01:46]} 16. g3 {[%clk 0:02:09.5]} 16... Qh5 {[%clk
0:01:39.9]} 17. f3 {[%clk 0:02:09.3]} 17... Bh3 {[%clk 0:01:36.4]} 18. Rfe1
{[%clk 0:02:08.7]} 18... f5 {[%clk 0:01:35]} 19. Nf2 {[%clk 0:02:08.7]} 19...
Ng6 {[%clk 0:01:15.8]} 20. Be2 {[%clk 0:02:04.8]} 20... f4 {[%clk 0:01:14.5]}
21. exf4 {[%clk 0:01:57.6]} 21... Nxf4 {[%clk 0:00:47]} 22. gxf4 {[%clk
0:01:52.9]} 22... Rxf4 {[%clk 0:00:41]} 23. Nxh3 {[%clk 0:01:29.7]} 23... Qxh3
{[%clk 0:00:40.3]} 24. Qg6 {[%clk 0:01:27.1]} 24... Raf8 {[%clk 0:00:18]} 25.
Qe6+ {[%clk 0:01:26.2]} 25... Qxe6 {[%clk 0:00:16.2]} 26. dxe6 {[%clk
0:01:27.1]} 26... Re8 {[%clk 0:00:12]} 27. Kg2 {[%clk 0:01:26]} 27... b5 {[%clk
0:00:06]} 28. a4 {[%clk 0:01:18.9]} 28... Rxe6 {[%clk 0:00:05.6]} 29. axb5
{[%clk 0:01:19.1]} 29... axb5 {[%clk 0:00:06.2]} 30. Bxb5 {[%clk 0:01:16.4]}
30... Rg6+ {[%clk 0:00:06.1]} 31. Kh1 {[%clk 0:01:16.3]} 31... Rh4 {[%clk
0:00:05]} 32. Bc4+ {[%clk 0:01:12.3]} 32... Kf8 {[%clk 0:00:04.8]} 33. Ra8+
{[%clk 0:01:08.5]} 33... Ke7 {[%clk 0:00:04.8]} 34. Ne4 {[%clk 0:01:05.7]} 34...
Rh5 {[%clk 0:00:01.2]} 35. Bd3 {[%clk 0:00:57.2]} 1-0

[Event "*** SCC Grand Prix: Titled Tuesday Blitz"]
[Site "Chess.com"]
[Date "2020.06.23"]
[Round "6"]
[White "warmoatmeal"]
[Black "iverichighladze"]
[Result "0-1"]
[WhiteElo "2314"]
[BlackElo "2450"]
[TimeControl "180+1"]
[EndTime "11:05:36 PDT"]
[Termination "iverichighladze won by resignation"]

1. Nf3 {[%clk 0:03:00.8]} 1... Nf6 {[%clk 0:02:33.2]} 2. d4 {[%clk 0:03:00.4]}
2... g6 {[%clk 0:02:32.2]} 3. Bg5 {[%clk 0:03:01]} 3... Bg7 {[%clk 0:02:31.4]}
4. Nbd2 {[%clk 0:03:01.6]} 4... d5 {[%clk 0:02:31.5]} 5. e3 {[%clk 0:03:01.9]}
5... O-O {[%clk 0:02:31.5]} 6. Be2 {[%clk 0:03:02.1]} 6... c5 {[%clk 0:02:32]}
7. c4 {[%clk 0:03:00]} 7... cxd4 {[%clk 0:02:29.7]} 8. Nxd4 {[%clk 0:02:59.1]}
8... e5 {[%clk 0:02:27.7]} 9. N4f3 {[%clk 0:02:59.5]} 9... Nc6 {[%clk
0:02:27.6]} 10. cxd5 {[%clk 0:03:00.3]} 10... Qxd5 {[%clk 0:02:26.1]} 11. Nc4
{[%clk 0:03:00.1]} 11... e4 {[%clk 0:02:16.5]} 12. Qxd5 {[%clk 0:02:50.8]} 12...
Nxd5 {[%clk 0:02:15.6]} 13. Nfd2 {[%clk 0:02:51.4]} 13... f5 {[%clk 0:02:06.9]}
14. O-O {[%clk 0:02:49.5]} 14... Be6 {[%clk 0:02:05.3]} 15. Rac1 {[%clk
0:02:47.3]} 15... Ncb4 {[%clk 0:01:49.6]} 16. a3 {[%clk 0:02:47.2]} 16... Nd3
{[%clk 0:01:48]} 17. Bxd3 {[%clk 0:02:47.1]} 17... exd3 {[%clk 0:01:47.7]} 18.
Rfd1 {[%clk 0:02:44.5]} 18... b5 {[%clk 0:01:33.9]} 19. Nd6 {[%clk 0:02:44.5]}
19... Bxb2 {[%clk 0:01:33.2]} 20. Rc6 {[%clk 0:02:33.1]} 20... Bxa3 {[%clk
0:01:28.2]} 21. Nxb5 {[%clk 0:02:32.8]} 21... Bd7 {[%clk 0:01:28.1]} 22. Rc3
{[%clk 0:01:34.4]} 22... Nxc3 {[%clk 0:01:25.3]} 23. Nxc3 {[%clk 0:01:34.7]}
23... a5 {[%clk 0:01:19.3]} 24. Nd5 {[%clk 0:01:34.5]} 24... Ba4 {[%clk
0:01:01.3]} 25. Ra1 {[%clk 0:01:33.3]} 25... Bb4 {[%clk 0:01:01.3]} 26. Nc4
{[%clk 0:01:10.7]} 26... Bb3 {[%clk 0:00:52.1]} 27. Ncb6 {[%clk 0:00:59.7]}
27... d2 {[%clk 0:00:50.4]} 28. Nxa8 {[%clk 0:00:10.5]} 28... Bxd5 {[%clk
0:00:50.1]} 29. Nb6 {[%clk 0:00:04.4]} 29... Bb3 {[%clk 0:00:49.4]} 0-1

[Event "*** SCC Grand Prix: Titled Tuesday Blitz"]
[Site "Chess.com"]
[Date "2020.06.23"]
[Round "6"]
[White "Julianos82"]
[Black "baby_leo"]
[Result "1-0"]
[WhiteElo "2239"]
[BlackElo "1962"]
[TimeControl "180+1"]
[EndTime "11:05:36 PDT"]
[Termination "Julianos82 won by resignation"]

1. d4 {[%clk 0:03:00.9]} 1... Nf6 {[%clk 0:02:59.2]} 2. Nf3 {[%clk 0:03:00.2]}
2... e6 {[%clk 0:02:58.5]} 3. Bg5 {[%clk 0:03:00.2]} 3... d5 {[%clk 0:02:55]} 4.
Nbd2 {[%clk 0:02:59.7]} 4... Be7 {[%clk 0:02:53.2]} 5. e3 {[%clk 0:02:59.9]}
5... O-O {[%clk 0:02:52.2]} 6. Bd3 {[%clk 0:03:00]} 6... h6 {[%clk 0:02:51.9]}
7. Bf4 {[%clk 0:02:59.1]} 7... c5 {[%clk 0:02:50.3]} 8. c3 {[%clk 0:02:58.6]}
8... b6 {[%clk 0:02:50.1]} 9. Ne5 {[%clk 0:02:58.8]} 9... Bb7 {[%clk 0:02:50.1]}
10. Qf3 {[%clk 0:02:57.6]} 10... Nbd7 {[%clk 0:02:43.8]} 11. g4 {[%clk 0:02:50]}
11... Nxe5 {[%clk 0:02:20.8]} 12. Bxe5 {[%clk 0:02:50.9]} 12... Nd7 {[%clk
0:02:17.4]} 13. Bf4 {[%clk 0:02:45.4]} 13... Bf6 {[%clk 0:02:06.1]} 14. Qg3
{[%clk 0:02:31.5]} 14... Re8 {[%clk 0:01:57]} 15. Nf3 {[%clk 0:02:24.3]} 15...
g5 {[%clk 0:01:30.2]} 16. Be5 {[%clk 0:02:17.2]} 16... Bxe5 {[%clk 0:01:22.8]}
17. dxe5 {[%clk 0:02:09.2]} 17... d4 {[%clk 0:01:21.3]} 18. O-O-O {[%clk
0:01:52.6]} 18... Bxf3 {[%clk 0:01:14.4]} 19. Qxf3 {[%clk 0:01:53.5]} 19... Nxe5
{[%clk 0:01:12.8]} 20. Qe4 {[%clk 0:01:53.1]} 20... Ng6 {[%clk 0:01:12.6]} 21.
h4 {[%clk 0:01:43]} 21... dxc3 {[%clk 0:01:02.5]} 22. Bb5 {[%clk 0:01:31.6]}
22... cxb2+ {[%clk 0:01:01.2]} 23. Kxb2 {[%clk 0:01:32.5]} 23... Qf6+ {[%clk
0:01:00.4]} 24. Kb1 {[%clk 0:01:27]} 24... Red8 {[%clk 0:01:00.1]} 25. Rd7
{[%clk 0:01:16.7]} 25... Rxd7 {[%clk 0:00:55.5]} 26. Qxa8+ {[%clk 0:01:15.7]}
26... Rd8 {[%clk 0:00:55.8]} 27. Qxa7 {[%clk 0:01:13.5]} 27... Qxf2 {[%clk
0:00:51]} 28. hxg5 {[%clk 0:01:08.1]} 28... hxg5 {[%clk 0:00:49.2]} 29. Qxb6
{[%clk 0:00:58.4]} 29... Qxe3 {[%clk 0:00:45.6]} 30. Qxd8+ {[%clk 0:00:56.8]}
30... Kg7 {[%clk 0:00:42.7]} 31. Qd3 {[%clk 0:00:54.2]} 31... Qe5 {[%clk
0:00:30]} 32. a4 {[%clk 0:00:46.2]} 32... Nf4 {[%clk 0:00:12.4]} 33. Qh7+ {[%clk
0:00:45.3]} 33... Kf6 {[%clk 0:00:12.2]} 34. Qh8+ {[%clk 0:00:43.1]} 1-0

[Event "*** SCC Grand Prix: Titled Tuesday Blitz"]
[Site "Chess.com"]
[Date "2020.06.23"]
[Round "6"]
[White "Phriex"]
[Black "WIDBIFS"]
[Result "0-1"]
[WhiteElo "2405"]
[BlackElo "2716"]
[TimeControl "180+1"]
[EndTime "11:05:37 PDT"]
[Termination "WIDBIFS won by resignation"]

1. d4 {[%clk 0:02:57.8]} 1... Nf6 {[%clk 0:03:00.2]} 2. c4 {[%clk 0:02:57.4]}
2... g6 {[%clk 0:03:00.7]} 3. g3 {[%clk 0:02:57.3]} 3... Bg7 {[%clk 0:03:01.3]}
4. Bg2 {[%clk 0:02:57.9]} 4... O-O {[%clk 0:03:02]} 5. Nc3 {[%clk 0:02:58.5]}
5... d6 {[%clk 0:03:02.5]} 6. Nf3 {[%clk 0:02:58.8]} 6... Nc6 {[%clk 0:03:02.9]}
7. O-O {[%clk 0:02:59.3]} 7... Bf5 {[%clk 0:03:03]} 8. Ne1 {[%clk 0:02:58.6]}
8... Qd7 {[%clk 0:03:03.1]} 9. e4 {[%clk 0:02:55.1]} 9... Bh3 {[%clk 0:03:03.4]}
10. Be3 {[%clk 0:02:53.9]} 10... Bxg2 {[%clk 0:03:03.6]} 11. Kxg2 {[%clk
0:02:54.2]} 11... Ng4 {[%clk 0:02:55.6]} 12. Nc2 {[%clk 0:02:32.1]} 12... Nxe3+
{[%clk 0:02:47]} 13. fxe3 {[%clk 0:02:33]} 13... e5 {[%clk 0:02:47.2]} 14. d5
{[%clk 0:02:26.2]} 14... Ne7 {[%clk 0:02:47.6]} 15. b4 {[%clk 0:02:24.4]} 15...
c6 {[%clk 0:02:29]} 16. Qd3 {[%clk 0:02:20.2]} 16... Rac8 {[%clk 0:02:25.8]} 17.
Rad1 {[%clk 0:02:18]} 17... Rfd8 {[%clk 0:02:22.3]} 18. h3 {[%clk 0:02:13.7]}
18... Qc7 {[%clk 0:02:10.7]} 19. a3 {[%clk 0:02:10]} 19... cxd5 {[%clk
0:02:00.9]} 20. Nxd5 {[%clk 0:02:09.7]} 20... Nxd5 {[%clk 0:02:01.4]} 21. Qxd5
{[%clk 0:02:10.6]} 21... Qxc4 {[%clk 0:01:59.4]} 22. Ne1 {[%clk 0:02:04.9]}
22... Qxd5 {[%clk 0:01:36.7]} 23. Rxd5 {[%clk 0:02:04.1]} 23... Rc3 {[%clk
0:01:35.4]} 24. Rd3 {[%clk 0:02:04.2]} 24... Rc4 {[%clk 0:01:24.2]} 25. Nf3
{[%clk 0:01:40.7]} 25... Rc2+ {[%clk 0:01:12.4]} 26. Rf2 {[%clk 0:01:39.6]}
26... Rc1 {[%clk 0:01:03.3]} 27. Rfd2 {[%clk 0:01:38.2]} 27... Rc6 {[%clk
0:00:51.6]} 28. g4 {[%clk 0:01:38.4]} 28... h6 {[%clk 0:00:50.9]} 29. Rd5 {[%clk
0:01:35.9]} 29... Rc3 {[%clk 0:00:44.7]} 30. Nxe5 {[%clk 0:01:16.4]} 30... Rxe3
{[%clk 0:00:37.7]} 31. Nc4 {[%clk 0:01:13.8]} 31... Rxe4 {[%clk 0:00:38.1]} 32.
Nxd6 {[%clk 0:01:12.5]} 32... Re5 {[%clk 0:00:37.5]} 33. Rxe5 {[%clk 0:01:06.9]}
33... Bxe5 {[%clk 0:00:38.4]} 34. Nc4 {[%clk 0:01:07.3]} 34... Rxd2+ {[%clk
0:00:39.1]} 35. Nxd2 {[%clk 0:01:08.2]} 35... b5 {[%clk 0:00:29.3]} 36. Ne4
{[%clk 0:01:03.5]} 36... Bb2 {[%clk 0:00:27.1]} 37. Nd6 {[%clk 0:01:00.7]} 37...
a6 {[%clk 0:00:27.2]} 38. Ne8 {[%clk 0:01:01.1]} 38... Bxa3 {[%clk 0:00:26.7]}
39. Nc7 {[%clk 0:01:01.7]} 39... Bxb4 {[%clk 0:00:26.7]} 40. Nxa6 {[%clk
0:01:01.9]} 40... Bd6 {[%clk 0:00:27.3]} 41. Kf3 {[%clk 0:01:00.9]} 41... f5
{[%clk 0:00:27]} 42. gxf5 {[%clk 0:00:58.2]} 42... gxf5 {[%clk 0:00:27.9]} 43.
Ke3 {[%clk 0:00:59.1]} 43... Kf7 {[%clk 0:00:28.5]} 44. Kd4 {[%clk 0:00:59.6]}
44... Ke6 {[%clk 0:00:28.5]} 45. Kc3 {[%clk 0:00:58.4]} 45... f4 {[%clk
0:00:28.5]} 0-1

[Event "*** SCC Grand Prix: Titled Tuesday Blitz"]
[Site "Chess.com"]
[Date "2020.06.23"]
[Round "6"]
[White "Sanan_Sjugirov"]
[Black "Dedic8"]
[Result "1-0"]
[WhiteElo "2879"]
[BlackElo "2777"]
[TimeControl "180+1"]
[EndTime "11:05:39 PDT"]
[Termination "Sanan_Sjugirov won on time"]

1. e4 {[%clk 0:03:00.9]} 1... e5 {[%clk 0:02:27.3]} 2. Nf3 {[%clk 0:02:59.9]}
2... Nc6 {[%clk 0:02:27.9]} 3. Bb5 {[%clk 0:02:59.2]} 3... a6 {[%clk 0:02:28.5]}
4. Ba4 {[%clk 0:02:58.8]} 4... Nf6 {[%clk 0:02:29.1]} 5. O-O {[%clk 0:02:58.7]}
5... Be7 {[%clk 0:02:29.4]} 6. Re1 {[%clk 0:02:55.5]} 6... b5 {[%clk 0:02:29.3]}
7. Bb3 {[%clk 0:02:55.6]} 7... O-O {[%clk 0:02:30.1]} 8. a4 {[%clk 0:02:54.5]}
8... b4 {[%clk 0:02:30.4]} 9. d4 {[%clk 0:02:52.2]} 9... d6 {[%clk 0:02:30.7]}
10. dxe5 {[%clk 0:02:51.3]} 10... Nxe5 {[%clk 0:02:31.6]} 11. Nbd2 {[%clk
0:02:45.5]} 11... Nfd7 {[%clk 0:02:31.3]} 12. h3 {[%clk 0:02:27.6]} 12... Bb7
{[%clk 0:02:29.5]} 13. Nxe5 {[%clk 0:02:24.9]} 13... Nxe5 {[%clk 0:02:27.9]} 14.
Nf1 {[%clk 0:02:17.3]} 14... Kh8 {[%clk 0:02:27]} 15. Ng3 {[%clk 0:02:16.5]}
15... Bg5 {[%clk 0:02:19]} 16. Qh5 {[%clk 0:02:04.7]} 16... Bxc1 {[%clk
0:02:17.8]} 17. Raxc1 {[%clk 0:02:05.6]} 17... Qf6 {[%clk 0:02:14]} 18. Rcd1
{[%clk 0:01:43.2]} 18... a5 {[%clk 0:02:12.1]} 19. Qf5 {[%clk 0:01:37.6]} 19...
Qxf5 {[%clk 0:01:58.9]} 20. Nxf5 {[%clk 0:01:38.5]} 20... Rae8 {[%clk
0:01:45.7]} 21. f3 {[%clk 0:01:34.4]} 21... g6 {[%clk 0:01:33.8]} 22. Ne3 {[%clk
0:01:32]} 22... Nd7 {[%clk 0:01:24.9]} 23. Bd5 {[%clk 0:01:27]} 23... Bxd5
{[%clk 0:00:59.6]} 24. Rxd5 {[%clk 0:01:26.1]} 24... Nc5 {[%clk 0:00:57.5]} 25.
b3 {[%clk 0:01:23.8]} 25... f5 {[%clk 0:00:33.8]} 26. exf5 {[%clk 0:01:23.1]}
26... gxf5 {[%clk 0:00:34.2]} 27. Kf2 {[%clk 0:01:22.8]} 27... f4 {[%clk
0:00:30.2]} 28. Nc4 {[%clk 0:01:22.2]} 28... Rxe1 {[%clk 0:00:29.5]} 29. Kxe1
{[%clk 0:01:23.1]} 29... Ra8 {[%clk 0:00:21]} 30. Rf5 {[%clk 0:01:22.6]} 30...
Kg7 {[%clk 0:00:12.1]} 31. Rxf4 {[%clk 0:01:21.9]} 31... d5 {[%clk 0:00:12.3]}
32. Ne3 {[%clk 0:01:17.6]} 32... c6 {[%clk 0:00:12.6]} 33. Kd2 {[%clk
0:01:14.2]} 33... Ne6 {[%clk 0:00:12]} 34. Rg4+ {[%clk 0:01:12.6]} 34... Kf6
{[%clk 0:00:12]} 35. Rh4 {[%clk 0:01:07.7]} 35... Kg6 {[%clk 0:00:09.9]} 36. f4
{[%clk 0:01:04.9]} 36... Rf8 {[%clk 0:00:09.2]} 37. f5+ {[%clk 0:01:04.2]} 37...
Kg5 {[%clk 0:00:09.8]} 38. Rg4+ {[%clk 0:01:03.6]} 1-0

[Event "*** SCC Grand Prix: Titled Tuesday Blitz"]
[Site "Chess.com"]
[Date "2020.06.23"]
[Round "6"]
[White "ChessWarrior7197"]
[Black "Enki007"]
[Result "0-1"]
[WhiteElo "2893"]
[BlackElo "2711"]
[TimeControl "180+1"]
[EndTime "11:05:40 PDT"]
[Termination "Enki007 won by resignation"]

1. e4 {[%clk 0:03:00.9]} 1... c6 {[%clk 0:02:59.7]} 2. d4 {[%clk 0:03:00.7]}
2... d5 {[%clk 0:02:59.9]} 3. exd5 {[%clk 0:03:00.9]} 3... cxd5 {[%clk 0:03:00]}
4. Bd3 {[%clk 0:03:01.5]} 4... Nc6 {[%clk 0:02:59.7]} 5. c3 {[%clk 0:03:02]}
5... Qc7 {[%clk 0:03:00.1]} 6. h3 {[%clk 0:03:02]} 6... g6 {[%clk 0:02:58.1]} 7.
Nf3 {[%clk 0:03:02.3]} 7... Bf5 {[%clk 0:02:50]} 8. O-O {[%clk 0:02:59.9]} 8...
Bxd3 {[%clk 0:02:45.8]} 9. Qxd3 {[%clk 0:02:59.5]} 9... Bg7 {[%clk 0:02:46.3]}
10. g3 {[%clk 0:02:53.2]} 10... Nf6 {[%clk 0:02:43.5]} 11. Bf4 {[%clk 0:02:53]}
11... Qc8 {[%clk 0:02:44]} 12. Kg2 {[%clk 0:02:51.5]} 12... O-O {[%clk
0:02:43.3]} 13. Nbd2 {[%clk 0:02:51.8]} 13... Re8 {[%clk 0:02:43.2]} 14. h4
{[%clk 0:02:47.7]} 14... a6 {[%clk 0:02:43.1]} 15. a4 {[%clk 0:02:39.9]} 15...
Qf5 {[%clk 0:02:40.9]} 16. Qe2 {[%clk 0:02:34.5]} 16... Nh5 {[%clk 0:02:35.7]}
17. Be3 {[%clk 0:02:33.5]} 17... e5 {[%clk 0:02:35.7]} 18. dxe5 {[%clk
0:02:33.3]} 18... Nxe5 {[%clk 0:02:34.8]} 19. Nxe5 {[%clk 0:02:33.6]} 19... Rxe5
{[%clk 0:02:23.6]} 20. Nf3 {[%clk 0:02:01.1]} 20... Qg4 {[%clk 0:02:10]} 21. Kh2
{[%clk 0:01:27.9]} 21... Rae8 {[%clk 0:02:01.6]} 22. Nd4 {[%clk 0:01:14]} 22...
Nf6 {[%clk 0:01:55.9]} 23. Qd3 {[%clk 0:00:57.8]} 23... Qd7 {[%clk 0:01:27.5]}
24. Bf4 {[%clk 0:00:56.1]} 24... Re4 {[%clk 0:01:26.2]} 25. f3 {[%clk
0:00:54.6]} 25... Rxf4 {[%clk 0:01:17]} 26. gxf4 {[%clk 0:00:54.6]} 26... Nh5
{[%clk 0:01:17.6]} 27. Rfe1 {[%clk 0:00:44]} 27... Rxe1 {[%clk 0:01:16.2]} 28.
Rxe1 {[%clk 0:00:44.9]} 28... Nxf4 {[%clk 0:01:16.7]} 29. Qf1 {[%clk 0:00:45.1]}
29... Bxd4 {[%clk 0:01:07.5]} 30. cxd4 {[%clk 0:00:45]} 30... Qxa4 {[%clk
0:01:08.1]} 31. Rc1 {[%clk 0:00:21.5]} 31... Qxd4 {[%clk 0:01:05.1]} 32. Rc2
{[%clk 0:00:21.7]} 32... Ne6 {[%clk 0:01:02.4]} 33. Qf2 {[%clk 0:00:21.7]} 33...
Qf4+ {[%clk 0:01:02.3]} 34. Qg3 {[%clk 0:00:22.1]} 34... Qe3 {[%clk 0:01:02.5]}
35. h5 {[%clk 0:00:20.8]} 35... Kg7 {[%clk 0:00:58.4]} 36. f4 {[%clk 0:00:20.9]}
36... Qe4 {[%clk 0:00:55.4]} 37. Qh4 {[%clk 0:00:17.8]} 37... Qxc2+ {[%clk
0:00:52.7]} 0-1

[Event "*** SCC Grand Prix: Titled Tuesday Blitz"]
[Site "Chess.com"]
[Date "2020.06.23"]
[Round "6"]
[White "Logman74"]
[Black "bgfbfbgfbgfgf"]
[Result "0-1"]
[WhiteElo "2470"]
[BlackElo "2616"]
[TimeControl "180+1"]
[EndTime "11:05:42 PDT"]
[Termination "bgfbfbgfbgfgf won on time"]

1. e4 {[%clk 0:03:00.9]} 1... c5 {[%clk 0:02:59.7]} 2. Nf3 {[%clk 0:03:00.6]}
2... d6 {[%clk 0:02:59.5]} 3. d4 {[%clk 0:03:01.1]} 3... c4 {[%clk 0:03:00.4]}
4. Bxc4 {[%clk 0:02:58.8]} 4... Nf6 {[%clk 0:03:00.1]} 5. Nc3 {[%clk 0:02:56.4]}
5... a6 {[%clk 0:02:55.2]} 6. O-O {[%clk 0:02:55.7]} 6... b5 {[%clk 0:02:54.5]}
7. Bb3 {[%clk 0:02:54.9]} 7... Bb7 {[%clk 0:02:54.6]} 8. e5 {[%clk 0:02:53.6]}
8... dxe5 {[%clk 0:02:49.3]} 9. Nxe5 {[%clk 0:02:48]} 9... e6 {[%clk 0:02:48.7]}
10. Bg5 {[%clk 0:02:46.7]} 10... Be7 {[%clk 0:02:48.1]} 11. Re1 {[%clk
0:02:44.4]} 11... O-O {[%clk 0:02:46.8]} 12. Qe2 {[%clk 0:02:43.7]} 12... Qxd4
{[%clk 0:02:41.2]} 13. Rad1 {[%clk 0:02:41.3]} 13... Qb6 {[%clk 0:02:40.9]} 14.
Nxf7 {[%clk 0:02:02.4]} 14... Rxf7 {[%clk 0:02:36]} 15. Bxe6 {[%clk 0:02:02.1]}
15... Nc6 {[%clk 0:02:13.1]} 16. Bxf6 {[%clk 0:02:00.1]} 16... Bxf6 {[%clk
0:02:10.6]} 17. Nd5 {[%clk 0:01:59.1]} 17... Qd8 {[%clk 0:01:57.5]} 18. Qh5
{[%clk 0:01:42.1]} 18... Qe8 {[%clk 0:01:19]} 19. Nc7 {[%clk 0:01:30.7]} 19...
Qf8 {[%clk 0:01:15.6]} 20. Nxa8 {[%clk 0:01:30.1]} 20... Bxa8 {[%clk 0:01:16.5]}
21. Rd7 {[%clk 0:01:27.8]} 21... Be7 {[%clk 0:01:16.3]} 22. Bxf7+ {[%clk
0:00:56.6]} 22... Qxf7 {[%clk 0:01:17.2]} 23. Rexe7 {[%clk 0:00:49]} 23... Qxh5
{[%clk 0:01:11.4]} 24. Rxg7+ {[%clk 0:00:27.7]} 24... Kh8 {[%clk 0:00:45.2]} 25.
g4 {[%clk 0:00:26.7]} 25... Qh6 {[%clk 0:00:36.9]} 26. g5 {[%clk 0:00:10.7]}
26... Qxg7 {[%clk 0:00:34.2]} 0-1